[Event "Live Chess"]
[Site "Chess.com"]
[Date "2023.05.20"]
[Round "-"]
[White "18Ziyad"]
[Black "jameskwong"]
[Result "0-1"]
[WhiteElo "1000"]
[BlackElo "2162"]
[TimeControl "300"]
[EndTime "10:22:25 PDT"]
[Termination "jameskwong won by checkmate"]

1. e4 {[%clk 0:04:52.9]} 1... c5 {[%clk 0:04:55.2]} 2. a3 {[%clk 0:04:51.1]}
2... Nc6 {[%clk 0:04:50.2]} 3. b4 {[%clk 0:04:49.7]} 3... cxb4 {[%clk
0:04:48.3]} 4. axb4 {[%clk 0:04:49.6]} 4... Nxb4 {[%clk 0:04:47]} 5. c3 {[%clk
0:04:49.5]} 5... Nc6 {[%clk 0:04:44.7]} 6. d4 {[%clk 0:04:48.3]} 6... d6 {[%clk
0:04:35.8]} 7. f4 {[%clk 0:04:45]} 7... e5 {[%clk 0:04:29.9]} 8. f5 {[%clk
0:04:43]} 8... Qh4+ {[%clk 0:04:26.7]} 9. g3 {[%clk 0:04:35.1]} 9... Qxe4+
{[%clk 0:04:25]} 10. Qe2 {[%clk 0:04:30.3]} 10... Qxh1 {[%clk 0:04:22.7]} 11.
Be3 {[%clk 0:04:27.9]} 11... Qe4 {[%clk 0:04:10.9]} 12. Nd2 {[%clk 0:04:22.8]}
12... Qxf5 {[%clk 0:04:08.9]} 13. Ngf3 {[%clk 0:04:20]} 13... Nf6 {[%clk
0:04:03.1]} 14. Nh4 {[%clk 0:04:15.6]} 14... Qg4 {[%clk 0:03:54.8]} 15. Nhf3
{[%clk 0:04:11.7]} 15... e4 {[%clk 0:03:48.3]} 16. Ng1 {[%clk 0:04:07.4]} 16...
Qxe2+ {[%clk 0:03:45.9]} 17. Nxe2 {[%clk 0:04:07.3]} 17... Be7 {[%clk
0:03:36.7]} 18. c4 {[%clk 0:04:04.4]} 18... Nb4 {[%clk 0:03:34.7]} 19. Rc1
{[%clk 0:03:56.9]} 19... Nd3+ {[%clk 0:03:31.8]} 20. Kd1 {[%clk 0:03:55.5]}
20... Nxc1 {[%clk 0:03:30.6]} 21. Kxc1 {[%clk 0:03:55.4]} 21... O-O {[%clk
0:03:28.8]} 22. d5 {[%clk 0:03:54.3]} 22... Bf5 {[%clk 0:03:22.9]} 23. Bg2
{[%clk 0:03:53]} 23... Rfc8 {[%clk 0:03:20]} 24. Nc3 {[%clk 0:03:50.8]} 24... a6
{[%clk 0:03:13.5]} 25. Kd1 {[%clk 0:03:45.6]} 25... b5 {[%clk 0:03:11.3]} 26.
Kc2 {[%clk 0:03:44.1]} 26... bxc4 {[%clk 0:03:08.2]} 27. Bf1 {[%clk 0:03:39.1]}
27... Ng4 {[%clk 0:03:03.7]} 28. Bd4 {[%clk 0:03:30.1]} 28... e3+ {[%clk
0:03:02.1]} 29. Kd1 {[%clk 0:03:24.4]} 29... exd2 {[%clk 0:02:59.9]} 30. Kxd2
{[%clk 0:03:24.3]} 30... Nxh2 {[%clk 0:02:57]} 31. Bg2 {[%clk 0:03:20.1]} 31...
Rab8 {[%clk 0:02:51.3]} 32. Nd1 {[%clk 0:03:14.6]} 32... Bg5+ {[%clk 0:02:49.2]}
33. Kc3 {[%clk 0:03:12.7]} 33... Rb3# {[%clk 0:02:46.8]} 0-1

[Event "Live Chess"]
[Site "Chess.com"]
[Date "2023.05.20"]
[Round "-"]
[White "ProfPoisson"]
[Black "Misha145Chess"]
[Result "0-1"]
[WhiteElo "1050"]
[BlackElo "611"]
[TimeControl "300"]
[EndTime "10:22:39 PDT"]
[Termination "Misha145Chess won on time"]

1. e4 {[%clk 0:04:53.1]} 1... d5 {[%clk 0:04:56]} 2. exd5 {[%clk 0:04:51.1]}
2... Qxd5 {[%clk 0:04:54.8]} 3. Nc3 {[%clk 0:04:50.4]} 3... Qd8 {[%clk
0:04:48.9]} 4. d4 {[%clk 0:04:42.6]} 4... Nc6 {[%clk 0:04:47.1]} 5. Nf3 {[%clk
0:04:33.8]} 5... e5 {[%clk 0:04:45]} 6. Bc4 {[%clk 0:04:25.8]} 6... exd4 {[%clk
0:04:41.2]} 7. Bxf7+ {[%clk 0:04:06.1]} 7... Kxf7 {[%clk 0:04:37.5]} 8. Ng5+
{[%clk 0:04:04.5]} 8... Ke8 {[%clk 0:04:14]} 9. Qe2+ {[%clk 0:03:56]} 9... Qe7
{[%clk 0:04:10.3]} 10. Qxe7+ {[%clk 0:03:43.6]} 10... Bxe7 {[%clk 0:04:08.1]}
11. Nd5 {[%clk 0:03:43.2]} 11... Bxg5 {[%clk 0:04:04.6]} 12. Bxg5 {[%clk
0:03:40.6]} 12... Kd7 {[%clk 0:03:52]} 13. O-O-O {[%clk 0:03:27.9]} 13... Kd6
{[%clk 0:03:46]} 14. Nf4 {[%clk 0:03:16.2]} 14... Ke5 {[%clk 0:03:37.7]} 15.
Rhe1+ {[%clk 0:03:11.6]} 15... Kf5 {[%clk 0:03:35.2]} 16. h4 {[%clk 0:03:01.7]}
16... h6 {[%clk 0:03:25.8]} 17. g4+ {[%clk 0:02:58.5]} 17... Kxg4 {[%clk
0:03:19.1]} 18. Rg1+ {[%clk 0:02:38.4]} 18... Kf5 {[%clk 0:03:15.9]} 19. Nd5
{[%clk 0:01:42.8]} 19... hxg5 {[%clk 0:03:01.9]} 20. Rxg5+ {[%clk 0:01:40]}
20... Ke4 {[%clk 0:02:54.4]} 21. Re1+ {[%clk 0:01:36]} 21... Kf3 {[%clk
0:02:51.3]} 22. Kd2 {[%clk 0:00:53.6]} 22... Kxf2 {[%clk 0:02:37]} 23. Rg2+
{[%clk 0:00:41.8]} 23... Kxg2 {[%clk 0:02:32.3]} 24. Nf4+ {[%clk 0:00:19.9]}
24... Kf3 {[%clk 0:02:21.9]} 25. Rf1+ {[%clk 0:00:16.8]} 25... Ke4 {[%clk
0:02:20.4]} 26. Ng6 {[%clk 0:00:12.3]} 26... Rh6 {[%clk 0:02:06.6]} 27. Rf4+
{[%clk 0:00:07.3]} 27... Kd5 {[%clk 0:02:05.5]} 28. Rf5+ {[%clk 0:00:02.7]}
28... Bxf5 {[%clk 0:02:01.3]} 0-1

[Event "Live Chess"]
[Site "Chess.com"]
[Date "2023.05.20"]
[Round "-"]
[White "terrub10"]
[Black "PaulyD81"]
[Result "1-0"]
[WhiteElo "1083"]
[BlackElo "1083"]
[TimeControl "300"]
[EndTime "10:22:52 PDT"]
[Termination "terrub10 won by checkmate"]

1. d4 {[%clk 0:04:54.7]} 1... Nf6 {[%clk 0:04:53.6]} 2. Bg5 {[%clk 0:04:51.7]}
2... e6 {[%clk 0:04:50.4]} 3. Bxf6 {[%clk 0:04:48.6]} 3... Qxf6 {[%clk
0:04:48.6]} 4. Nf3 {[%clk 0:04:39.1]} 4... d6 {[%clk 0:04:17.2]} 5. e4 {[%clk
0:04:34.4]} 5... c5 {[%clk 0:04:15]} 6. dxc5 {[%clk 0:04:30.7]} 6... dxc5 {[%clk
0:04:08.4]} 7. Nc3 {[%clk 0:04:28.3]} 7... Nc6 {[%clk 0:04:02.6]} 8. Qd2 {[%clk
0:04:22.6]} 8... Nd4 {[%clk 0:03:48.2]} 9. Rd1 {[%clk 0:04:08.4]} 9... Nxf3+
{[%clk 0:03:41]} 10. Ke2 {[%clk 0:03:57.4]} 10... Nd4+ {[%clk 0:03:34.8]} 11.
Kd3 {[%clk 0:03:52.2]} 11... Bd7 {[%clk 0:03:28.8]} 12. Na4 {[%clk 0:03:48.3]}
12... Bxa4 {[%clk 0:03:26]} 13. b3 {[%clk 0:03:46.1]} 13... Bb5+ {[%clk
0:03:24.9]} 14. Kc3 {[%clk 0:03:43.3]} 14... Nf3+ {[%clk 0:03:19.6]} 15. e5
{[%clk 0:03:34.6]} 15... Nxd2 {[%clk 0:03:19.5]} 16. exf6 {[%clk 0:03:32.6]}
16... gxf6 {[%clk 0:03:13.5]} 17. Rxd2 {[%clk 0:03:29.1]} 17... e5 {[%clk
0:03:12.6]} 18. Bxb5+ {[%clk 0:03:26.6]} 18... Ke7 {[%clk 0:03:08.7]} 19. Be2
{[%clk 0:03:21.2]} 19... Ke6 {[%clk 0:03:05.8]} 20. Bg4+ {[%clk 0:03:18.8]}
20... f5 {[%clk 0:03:04.1]} 21. Bf3 {[%clk 0:03:16]} 21... h5 {[%clk 0:03:02.5]}
22. Bxb7 {[%clk 0:03:14]} 22... Rb8 {[%clk 0:02:57.9]} 23. Bd5+ {[%clk
0:03:09.8]} 23... Kf6 {[%clk 0:02:54.1]} 24. a3 {[%clk 0:03:03.1]} 24... Bh6
{[%clk 0:02:52.5]} 25. Rdd1 {[%clk 0:02:57.5]} 25... Rhd8 {[%clk 0:02:49.5]} 26.
b4 {[%clk 0:02:55.7]} 26... e4 {[%clk 0:02:46]} 27. bxc5 {[%clk 0:02:53.8]}
27... Ke5 {[%clk 0:02:44]} 28. Kc4 {[%clk 0:02:48.4]} 28... Bf8 {[%clk
0:02:30.5]} 29. c6 {[%clk 0:02:45.9]} 29... Rbc8 {[%clk 0:02:24.1]} 30. Rhe1
{[%clk 0:02:25.9]} 30... Bxa3 {[%clk 0:02:19.7]} 31. Ra1 {[%clk 0:02:13.6]}
31... Be7 {[%clk 0:02:14.1]} 32. Red1 {[%clk 0:02:09.6]} 32... Rd6 {[%clk
0:02:04.7]} 33. Rxa7 {[%clk 0:02:02.1]} 33... Rcxc6+ {[%clk 0:01:52.2]} 34. Bxc6
{[%clk 0:01:59.1]} 34... Rxc6+ {[%clk 0:01:47]} 35. Kb5 {[%clk 0:01:56.2]} 35...
Rc5+ {[%clk 0:01:43.8]} 36. Ka6 {[%clk 0:01:53.3]} 36... Rxc2 {[%clk 0:01:41.4]}
37. Rxe7+ {[%clk 0:01:50.4]} 37... Kf6 {[%clk 0:01:35.2]} 38. Rdd7 {[%clk
0:01:45.6]} 38... Rc6+ {[%clk 0:01:32.6]} 39. Kb7 {[%clk 0:01:43.2]} 39... Rc2
{[%clk 0:01:28.1]} 40. Rxf7+ {[%clk 0:01:41.6]} 40... Kg5 {[%clk 0:01:27.2]} 41.
Rg7+ {[%clk 0:01:39.7]} 41... Kf4 {[%clk 0:01:26.4]} 42. g3+ {[%clk 0:01:33.3]}
42... Kf3 {[%clk 0:01:25.5]} 43. Rc7 {[%clk 0:01:28.6]} 43... Rxf2 {[%clk
0:01:23.1]} 44. Rc3+ {[%clk 0:01:26.2]} 44... e3 {[%clk 0:01:21.2]} 45. Rf7
{[%clk 0:01:22]} 45... f4 {[%clk 0:01:16.2]} 46. gxf4 {[%clk 0:01:19.3]} 46...
Kg2 {[%clk 0:01:12.5]} 47. Rg7+ {[%clk 0:01:16.7]} 47... Kxh2 {[%clk 0:01:11.6]}
48. Rxe3 {[%clk 0:01:11.4]} 48... Rb2+ {[%clk 0:01:07.3]} 49. Kc6 {[%clk
0:01:08.8]} 49... Rc2+ {[%clk 0:01:05.1]} 50. Kd5 {[%clk 0:01:07.1]} 50... h4
{[%clk 0:01:01.7]} 51. f5 {[%clk 0:01:03.9]} 51... h3 {[%clk 0:01:00.3]} 52. f6
{[%clk 0:01:01.2]} 52... Rg2 {[%clk 0:00:59]} 53. Rh7 {[%clk 0:00:42.6]} 53...
Rg5+ {[%clk 0:00:54.5]} 54. Kd4 {[%clk 0:00:38.6]} 54... Rg4+ {[%clk 0:00:52.9]}
55. Kd3 {[%clk 0:00:35.7]} 55... Rg3 {[%clk 0:00:51.9]} 56. f7 {[%clk
0:00:30.3]} 56... Rxe3+ {[%clk 0:00:48.9]} 57. Kxe3 {[%clk 0:00:28.4]} 57... Kg2
{[%clk 0:00:48.1]} 58. f8=Q {[%clk 0:00:19.3]} 58... h2 {[%clk 0:00:47.3]} 59.
Qd6 {[%clk 0:00:14.3]} 59... h1=Q {[%clk 0:00:42]} 60. Rxh1 {[%clk 0:00:12.7]}
60... Kxh1 {[%clk 0:00:41.2]} 61. Qd5+ {[%clk 0:00:11.6]} 61... Kg1 {[%clk
0:00:39.7]} 62. Qd2 {[%clk 0:00:09.5]} 62... Kf1 {[%clk 0:00:38.6]} 63. Qe2+
{[%clk 0:00:07.8]} 63... Kg1 {[%clk 0:00:37]} 64. Kf3 {[%clk 0:00:05.5]} 64...
Kh1 {[%clk 0:00:33.7]} 65. Qg2# {[%clk 0:00:04.8]} 1-0

[Event "Live Chess"]
[Site "Chess.com"]
[Date "2023.05.20"]
[Round "-"]
[White "luckywookie"]
[Black "LanceMaster23"]
[Result "0-1"]
[WhiteElo "732"]
[BlackElo "1844"]
[TimeControl "300"]
[EndTime "10:22:56 PDT"]
[Termination "LanceMaster23 won by checkmate"]

1. e4 {[%clk 0:04:55]} 1... c5 {[%clk 0:04:58.8]} 2. c3 {[%clk 0:04:51.4]} 2...
d5 {[%clk 0:04:57.1]} 3. exd5 {[%clk 0:04:48.4]} 3... Qxd5 {[%clk 0:04:57]} 4.
d4 {[%clk 0:04:47.1]} 4... Nc6 {[%clk 0:04:48.9]} 5. Be3 {[%clk 0:04:42.5]} 5...
cxd4 {[%clk 0:04:46.5]} 6. cxd4 {[%clk 0:04:38]} 6... e6 {[%clk 0:04:37]} 7. Nc3
{[%clk 0:04:35.5]} 7... Bb4 {[%clk 0:04:33.4]} 8. Nf3 {[%clk 0:04:24.3]} 8...
Nf6 {[%clk 0:04:25.8]} 9. Be2 {[%clk 0:04:03.8]} 9... O-O {[%clk 0:04:15.7]} 10.
O-O {[%clk 0:03:55.5]} 10... Bxc3 {[%clk 0:04:13.5]} 11. bxc3 {[%clk 0:03:53.2]}
11... a6 {[%clk 0:04:11.4]} 12. Qd3 {[%clk 0:03:32.1]} 12... b5 {[%clk
0:03:56.1]} 13. Rfc1 {[%clk 0:03:25]} 13... Bb7 {[%clk 0:03:39.8]} 14. c4 {[%clk
0:03:15.3]} 14... bxc4 {[%clk 0:03:35.4]} 15. Rxc4 {[%clk 0:03:12.4]} 15... Rfd8
{[%clk 0:03:18.8]} 16. Rac1 {[%clk 0:02:58.6]} 16... Rac8 {[%clk 0:03:16.3]} 17.
Rc5 {[%clk 0:02:55.5]} 17... Qd6 {[%clk 0:02:58.3]} 18. Ne5 {[%clk 0:02:35.1]}
18... Nxe5 {[%clk 0:02:46.4]} 19. Rxc8 {[%clk 0:02:32.6]} 19... Nxd3 {[%clk
0:02:44.3]} 20. Rxd8+ {[%clk 0:02:27.8]} 20... Qxd8 {[%clk 0:02:44.2]} 21. Bxd3
{[%clk 0:02:26.5]} 21... Qd5 {[%clk 0:02:41.2]} 22. Rb1 {[%clk 0:02:16.3]} 22...
Qxg2# {[%clk 0:02:39.6]} 0-1

[Event "Live Chess"]
[Site "Chess.com"]
[Date "2023.05.20"]
[Round "-"]
[White "1600x"]
[Black "ViktorTheCoolBoy"]
[Result "0-1"]
[WhiteElo "1404"]
[BlackElo "2538"]
[TimeControl "300"]
[EndTime "10:23:01 PDT"]
[Termination "ViktorTheCoolBoy won by checkmate"]

1. d4 {[%clk 0:04:46]} 1... e6 {[%clk 0:04:56.7]} 2. Nc3 {[%clk 0:04:45.9]} 2...
Bb4 {[%clk 0:04:54.3]} 3. e4 {[%clk 0:04:20.3]} 3... Nf6 {[%clk 0:04:51.5]} 4.
a3 {[%clk 0:04:17.9]} 4... Bxc3+ {[%clk 0:04:49.9]} 5. bxc3 {[%clk 0:04:16.5]}
5... Nxe4 {[%clk 0:04:49.5]} 6. Qg4 {[%clk 0:04:14.2]} 6... Nf6 {[%clk
0:04:44.1]} 7. Qg3 {[%clk 0:04:11.9]} 7... Kf8 {[%clk 0:04:39.3]} 8. Bd3 {[%clk
0:04:10]} 8... d6 {[%clk 0:04:35]} 9. Bg5 {[%clk 0:04:04.5]} 9... h6 {[%clk
0:04:33.1]} 10. Be3 {[%clk 0:04:00.6]} 10... Nc6 {[%clk 0:04:31.2]} 11. h3
{[%clk 0:03:58.9]} 11... e5 {[%clk 0:04:28.8]} 12. Qf3 {[%clk 0:03:57.5]} 12...
Qe7 {[%clk 0:04:25.9]} 13. Be4 {[%clk 0:03:52.7]} 13... exd4 {[%clk 0:04:22.1]}
14. cxd4 {[%clk 0:03:49.4]} 14... Qxe4 {[%clk 0:04:20]} 15. Qxe4 {[%clk
0:03:46.9]} 15... Nxe4 {[%clk 0:04:19.9]} 16. Ne2 {[%clk 0:03:44.2]} 16... Be6
{[%clk 0:04:16.5]} 17. Rc1 {[%clk 0:03:42.4]} 17... Bc4 {[%clk 0:04:14.1]} 18.
a4 {[%clk 0:03:39.6]} 18... Re8 {[%clk 0:04:08.7]} 19. h4 {[%clk 0:03:37.5]}
19... Nb4 {[%clk 0:04:05.4]} 20. Nf4 {[%clk 0:03:35.8]} 20... Nd5 {[%clk
0:04:01]} 21. Nxd5 {[%clk 0:03:32.4]} 21... Bxd5 {[%clk 0:04:00.9]} 22. c4
{[%clk 0:03:31]} 22... Bc6 {[%clk 0:04:00.2]} 23. O-O {[%clk 0:03:28.3]} 23...
a5 {[%clk 0:03:57.7]} 24. Rfe1 {[%clk 0:03:27]} 24... b6 {[%clk 0:03:54.5]} 25.
f3 {[%clk 0:03:11.5]} 25... Nf6 {[%clk 0:03:53]} 26. Ra1 {[%clk 0:03:09.8]}
26... Kg8 {[%clk 0:03:47]} 27. Bf2 {[%clk 0:03:07.9]} 27... Kh7 {[%clk
0:03:42.8]} 28. Rec1 {[%clk 0:03:06.4]} 28... Re2 {[%clk 0:03:37.1]} 29. c5
{[%clk 0:03:04.2]} 29... bxc5 {[%clk 0:03:35.8]} 30. dxc5 {[%clk 0:03:02.8]}
30... d5 {[%clk 0:03:35.3]} 31. Re1 {[%clk 0:03:01.1]} 31... Rhe8 {[%clk
0:03:33.6]} 32. Rxe2 {[%clk 0:02:59.2]} 32... Rxe2 {[%clk 0:03:32.8]} 33. Bg3
{[%clk 0:02:57.3]} 33... Rc2 {[%clk 0:03:29.1]} 34. Bxc7 {[%clk 0:02:54.8]}
34... Rxc5 {[%clk 0:03:27.6]} 35. Bb6 {[%clk 0:02:53]} 35... Rc4 {[%clk
0:03:26.6]} 36. Bxa5 {[%clk 0:02:51.2]} 36... Rxa4 {[%clk 0:03:26.3]} 37. Rxa4
{[%clk 0:02:49.6]} 37... Bxa4 {[%clk 0:03:26.2]} 38. Bb6 {[%clk 0:02:48.1]}
38... Kg6 {[%clk 0:03:25]} 39. Be3 {[%clk 0:02:44.4]} 39... Kf5 {[%clk
0:03:23.6]} 40. Bd4 {[%clk 0:02:43.2]} 40... Ke6 {[%clk 0:03:22.7]} 41. g4
{[%clk 0:02:42]} 41... Bd1 {[%clk 0:03:20.6]} 42. Kf2 {[%clk 0:02:36]} 42... Ne8
{[%clk 0:03:20.1]} 43. Bc3 {[%clk 0:02:34.7]} 43... f6 {[%clk 0:03:18.3]} 44.
Bb2 {[%clk 0:02:33.4]} 44... g6 {[%clk 0:03:16.7]} 45. Bc1 {[%clk 0:02:29.1]}
45... h5 {[%clk 0:03:14.4]} 46. Kg3 {[%clk 0:02:27.4]} 46... Nd6 {[%clk
0:03:13.1]} 47. Kf4 {[%clk 0:02:25.1]} 47... Nf7 {[%clk 0:03:11.4]} 48. gxh5
{[%clk 0:02:23.8]} 48... gxh5 {[%clk 0:03:10.4]} 49. Be3 {[%clk 0:02:20.7]}
49... Ne5 {[%clk 0:03:09.4]} 50. Bd4 {[%clk 0:02:19.3]} 50... Nxf3 {[%clk
0:03:07.9]} 51. Bc3 {[%clk 0:02:15.7]} 51... Nxh4 {[%clk 0:03:05.5]} 52. Ke3
{[%clk 0:02:14.1]} 52... Nf5+ {[%clk 0:03:01.1]} 53. Kd2 {[%clk 0:02:11.9]}
53... Bf3 {[%clk 0:02:59.8]} 54. Ke1 {[%clk 0:02:10]} 54... Be4 {[%clk
0:02:59.2]} 55. Kf2 {[%clk 0:02:08.9]} 55... h4 {[%clk 0:02:58.4]} 56. Bb4
{[%clk 0:02:05.7]} 56... h3 {[%clk 0:02:57.6]} 57. Kg1 {[%clk 0:02:03.9]} 57...
Bg2 {[%clk 0:02:54.8]} 58. Bc5 {[%clk 0:01:59.4]} 58... d4 {[%clk 0:02:54.1]}
59. Kf2 {[%clk 0:01:57]} 59... d3 {[%clk 0:02:52.8]} 60. Bb4 {[%clk 0:01:54.4]}
60... Kd5 {[%clk 0:02:51.9]} 61. Bd2 {[%clk 0:01:52.8]} 61... Be4 {[%clk
0:02:49.7]} 62. Kg1 {[%clk 0:01:51.2]} 62... Ng3 {[%clk 0:02:46.8]} 63. Ba5
{[%clk 0:01:48.8]} 63... Bg2 {[%clk 0:02:44.2]} 64. Be1 {[%clk 0:01:46.5]} 64...
Ne2+ {[%clk 0:02:43.1]} 65. Kh2 {[%clk 0:01:44.3]} 65... Nd4 {[%clk 0:02:41.7]}
66. Kg3 {[%clk 0:01:43]} 66... Nb3 {[%clk 0:02:40.7]} 67. Kg4 {[%clk 0:01:41.5]}
67... d2 {[%clk 0:02:39.8]} 68. Bxd2 {[%clk 0:01:39.9]} 68... Nxd2 {[%clk
0:02:39.7]} 69. Kf5 {[%clk 0:01:37.9]} 69... h2 {[%clk 0:02:38.8]} 70. Kxf6
{[%clk 0:01:37.8]} 70... h1=Q {[%clk 0:02:38.7]} 71. Kf5 {[%clk 0:01:36.7]}
71... Be4+ {[%clk 0:02:38.3]} 72. Kf6 {[%clk 0:01:35.2]} 72... Qh6+ {[%clk
0:02:36.1]} 73. Kf7 {[%clk 0:01:34.2]} 73... Qg6+ {[%clk 0:02:35.4]} 74. Ke7
{[%clk 0:01:32.9]} 74... Qg7+ {[%clk 0:02:33.4]} 75. Kd8 {[%clk 0:01:31.5]}
75... Bf5 {[%clk 0:02:32.5]} 76. Ke8 {[%clk 0:01:30.2]} 76... Nc4 {[%clk
0:02:32.1]} 77. Kd8 {[%clk 0:01:28.8]} 77... Qd7# {[%clk 0:02:32]} 0-1

[Event "Live Chess"]
[Site "Chess.com"]
[Date "2023.05.20"]
[Round "-"]
[White "McSlash1"]
[Black "hturner40"]
[Result "1-0"]
[WhiteElo "2072"]
[BlackElo "1831"]
[TimeControl "300"]
[EndTime "10:23:04 PDT"]
[Termination "McSlash1 won by resignation"]

1. e4 {[%clk 0:04:58.8]} 1... Nc6 {[%clk 0:04:57.8]} 2. d4 {[%clk 0:04:57.7]}
2... e5 {[%clk 0:04:56.1]} 3. d5 {[%clk 0:04:56.7]} 3... Nce7 {[%clk 0:04:54.5]}
4. Nc3 {[%clk 0:04:54.4]} 4... Ng6 {[%clk 0:04:51]} 5. Bc4 {[%clk 0:04:50.7]}
5... Bc5 {[%clk 0:04:46.2]} 6. Nf3 {[%clk 0:04:49.5]} 6... Nf6 {[%clk
0:04:44.5]} 7. O-O {[%clk 0:04:48.8]} 7... a6 {[%clk 0:04:40.9]} 8. a3 {[%clk
0:04:48.2]} 8... O-O {[%clk 0:04:37.6]} 9. Be3 {[%clk 0:04:46.1]} 9... Bxe3
{[%clk 0:04:26.8]} 10. fxe3 {[%clk 0:04:46]} 10... Ng4 {[%clk 0:04:25.1]} 11.
Qe2 {[%clk 0:04:42.8]} 11... d6 {[%clk 0:04:17.2]} 12. h3 {[%clk 0:04:39.3]}
12... Nh6 {[%clk 0:04:15.8]} 13. b4 {[%clk 0:04:34.5]} 13... f5 {[%clk
0:04:09.7]} 14. exf5 {[%clk 0:04:32.2]} 14... Nxf5 {[%clk 0:04:07.1]} 15. Qe1
{[%clk 0:04:29.5]} 15... Ngh4 {[%clk 0:03:36.1]} 16. Nxh4 {[%clk 0:04:28]} 16...
Qxh4 {[%clk 0:03:33.9]} 17. Bd3 {[%clk 0:04:06.1]} 17... Qxe1 {[%clk 0:03:08]}
18. Raxe1 {[%clk 0:04:06]} 18... g6 {[%clk 0:03:04.8]} 19. Ne4 {[%clk
0:04:00.6]} 19... Bd7 {[%clk 0:02:58.3]} 20. c4 {[%clk 0:03:58.7]} 20... a5
{[%clk 0:02:50.2]} 21. g4 {[%clk 0:03:56.4]} 21... Nh4 {[%clk 0:02:44.5]} 22.
Nf6+ {[%clk 0:03:54.6]} 22... Rxf6 {[%clk 0:02:29.9]} 23. Rxf6 {[%clk
0:03:54.5]} 23... axb4 {[%clk 0:02:27]} 24. axb4 {[%clk 0:03:53.2]} 24... Ra3
{[%clk 0:02:10.9]} 25. Bb1 {[%clk 0:03:51.9]} 25... Rb3 {[%clk 0:02:06.1]} 26.
Ref1 {[%clk 0:03:50.9]} 26... Rb2 {[%clk 0:01:45.7]} 27. Rf8+ {[%clk 0:03:42.3]}
27... Kg7 {[%clk 0:01:43.3]} 28. R8f7+ {[%clk 0:03:41.8]} 28... Kh6 {[%clk
0:01:38.9]} 29. Rxd7 {[%clk 0:03:40.3]} 1-0

[Event "Live Chess"]
[Site "Chess.com"]
[Date "2023.05.20"]
[Round "-"]
[White "OBrightwell100"]
[Black "Enhard"]
[Result "0-1"]
[WhiteElo "1294"]
[BlackElo "1437"]
[TimeControl "300"]
[EndTime "10:23:11 PDT"]
[Termination "Enhard won by resignation"]

1. e4 {[%clk 0:04:59.5]} 1... c6 {[%clk 0:04:58.5]} 2. d4 {[%clk 0:04:58.9]}
2... d5 {[%clk 0:04:58]} 3. e5 {[%clk 0:04:58.1]} 3... Bf5 {[%clk 0:04:57.1]} 4.
Nf3 {[%clk 0:04:56.4]} 4... e6 {[%clk 0:04:56.4]} 5. Be2 {[%clk 0:04:56.3]} 5...
h6 {[%clk 0:04:55.2]} 6. Nc3 {[%clk 0:04:54.6]} 6... Nd7 {[%clk 0:04:52.4]} 7.
O-O {[%clk 0:04:51.9]} 7... Ne7 {[%clk 0:04:51.1]} 8. a4 {[%clk 0:04:47.2]} 8...
a5 {[%clk 0:04:48.4]} 9. Bd2 {[%clk 0:04:44.8]} 9... Bh7 {[%clk 0:04:43.1]} 10.
Be1 {[%clk 0:04:37.9]} 10... Nf5 {[%clk 0:04:41.7]} 11. Bd3 {[%clk 0:04:36.3]}
11... Be7 {[%clk 0:04:39.4]} 12. Ne2 {[%clk 0:04:31.1]} 12... O-O {[%clk
0:04:37.3]} 13. c4 {[%clk 0:04:30.1]} 13... dxc4 {[%clk 0:04:34.8]} 14. Bxc4
{[%clk 0:04:30]} 14... Nb6 {[%clk 0:04:23.2]} 15. Bd3 {[%clk 0:04:29]} 15... Nd5
{[%clk 0:04:18.5]} 16. Qc2 {[%clk 0:04:27.7]} 16... Nb4 {[%clk 0:04:14.9]} 17.
Qc3 {[%clk 0:04:24.1]} 17... Nxd3 {[%clk 0:04:08.6]} 18. Qxd3 {[%clk 0:04:22.3]}
18... Qb6 {[%clk 0:03:53.5]} 19. Bd2 {[%clk 0:04:16.6]} 19... Rfd8 {[%clk
0:03:48.3]} 20. h3 {[%clk 0:04:08.8]} 20... Bb4 {[%clk 0:03:40.7]} 21. Bf4
{[%clk 0:04:01.8]} 21... Be7 {[%clk 0:03:30.9]} 22. Nh2 {[%clk 0:04:00.7]} 22...
Nxd4 {[%clk 0:03:25.4]} 23. Qg3 {[%clk 0:03:51.8]} 23... Nxe2+ {[%clk
0:03:21.3]} 0-1

[Event "Live Chess"]
[Site "Chess.com"]
[Date "2023.05.20"]
[Round "-"]
[White "Singapourfeuj"]
[Black "flyingpuffins"]
[Result "1-0"]
[WhiteElo "2251"]
[BlackElo "1960"]
[TimeControl "300"]
[EndTime "10:23:18 PDT"]
[Termination "Singapourfeuj won by resignation"]

1. d4 {[%clk 0:04:59.5]} 1... d5 {[%clk 0:04:59]} 2. c4 {[%clk 0:04:58.2]} 2...
c6 {[%clk 0:04:58.5]} 3. Nf3 {[%clk 0:04:57.4]} 3... Nf6 {[%clk 0:04:57.7]} 4.
Nc3 {[%clk 0:04:56.7]} 4... dxc4 {[%clk 0:04:56.5]} 5. a4 {[%clk 0:04:54.5]}
5... Bf5 {[%clk 0:04:54.7]} 6. e3 {[%clk 0:04:53.3]} 6... e6 {[%clk 0:04:52.1]}
7. Bxc4 {[%clk 0:04:52.4]} 7... Bb4 {[%clk 0:04:51.5]} 8. O-O {[%clk 0:04:50.1]}
8... Nbd7 {[%clk 0:04:50.5]} 9. Qe2 {[%clk 0:04:49.1]} 9... Bg6 {[%clk
0:04:46.1]} 10. Rd1 {[%clk 0:04:47.2]} 10... O-O {[%clk 0:04:40.6]} 11. Bd2
{[%clk 0:04:45.1]} 11... Qe7 {[%clk 0:04:26.7]} 12. h3 {[%clk 0:04:43.8]} 12...
e5 {[%clk 0:04:24.6]} 13. dxe5 {[%clk 0:04:42.6]} 13... Nxe5 {[%clk 0:04:23.5]}
14. Nxe5 {[%clk 0:04:40.2]} 14... Qxe5 {[%clk 0:04:23.4]} 15. Be1 {[%clk
0:04:37.3]} 15... Bh5 {[%clk 0:04:08.6]} 16. g4 {[%clk 0:04:35.8]} 16... Bg6
{[%clk 0:04:05.9]} 17. f4 {[%clk 0:04:34.7]} 17... Qc5 {[%clk 0:03:51]} 18. f5
{[%clk 0:04:30.7]} 18... Bxf5 {[%clk 0:03:47.3]} 19. gxf5 {[%clk 0:04:29.8]}
19... Qxf5 {[%clk 0:03:47.2]} 20. Qg2 {[%clk 0:04:24.5]} 20... Bc5 {[%clk
0:03:40.7]} 21. Bh4 {[%clk 0:04:18.8]} 21... Bxe3+ {[%clk 0:03:36.1]} 22. Kh1
{[%clk 0:04:18.2]} 22... Nh5 {[%clk 0:03:23.2]} 23. Rf1 {[%clk 0:04:14.9]} 23...
Qc5 {[%clk 0:03:22.2]} 24. Be2 {[%clk 0:04:11.3]} 24... Nf4 {[%clk 0:03:16.5]}
25. Rxf4 {[%clk 0:04:08.1]} 25... Bxf4 {[%clk 0:03:14.7]} 26. Ne4 {[%clk
0:04:07]} 26... Qd5 {[%clk 0:03:05.6]} 27. Nf6+ {[%clk 0:04:05.7]} 1-0